Cogmind - Beta 14 @@@ ROGUE MODE // 2024.09.15 @ 12:36:35 Player: Dull Result: Destroyed by D-53 Grenadier with Mini Grenade Launcher Performance ------------- Evolutions (0) 0 Regions Visited (4) 800 Robots Destroyed (32) 160 Value Destroyed (805) 805 Prototype IDs (25) 500 Alien Tech Used (0) 0 Bonus (300) 300 TOTAL SCORE: 2565 Bonus ------- Aligned with FarCom 300 Cogmind --------- Core Integrity 0/250 Matter 204/300 Energy 250/250 System Corruption 3% Temperature Cool (0) Movement Rolling (155) Ox5 Location -9/Mines Parts ------- > --- POWER (1) -------- Ion Engine > --- PROPULSION (2) --- Wheel > --- UTILITY (2) ------ High-capacity Storage Unit > --- WEAPON (2) ------- Grenade Launcher Grenade Launcher > --- INVENTORY (20) --- Ion Engine Ion Engine Light Ion Engine Light Ion Engine Hover Unit Hover Unit Hover Unit Improved Heat Sink Large Storage Unit High-capacity Matter Pod (200) Tractor Beam Medium Laser Small Laser Beam Cannon Light Assault Rifle Mining Laser Mining Claw Longsword +1 Peak State ------------ > --- POWER ------------ Ion Engine > --- PROPULSION ------- Light Treads Light Treads > --- UTILITY ---------- Improved Heat Sink Large Storage Unit > --- WEAPON ----------- Medium Laser Assault Rifle > --- INVENTORY -------- Ion Engine Ion Engine Light Ion Engine Light Ion Engine Aluminum Leg Aluminum Leg Wheel Compact Wheel Hover Unit Hover Unit Tractor Beam EM Pulse Gun [Rating: 10] Favorites ----------- Power Ion Engine Engine Ion Engine Propulsion Light Treads Treads Light Treads Leg Aluminum Leg Wheel Wheel Utility High-capacity Storage Unit Device Tractor Beam Storage High-capacity Storage Unit Protection Light Armor Plating Weapon Medium Laser Energy Gun Medium Laser Energy Cannon Beam Cannon Ballistic Gun Light Assault Rifle Launcher Grenade Launcher Slashing Weapon Mining Claw Build | -11 -10 -10 -10 -9 ------- Run | Yrd Mat Min Exi Min Slots Evolved . | . . . . . Power . | . . . . . Propulsion . | . . . . . Utility . | . . . . . Weapon . | . . . . . Parts Attached 30 | 2 17 7 2 2 Power 4 | . 2 2 . . Engine 4 | . 2 2 . . Core . | . . . . . Reactor . | . . . . . Propulsion 5 | . 3 2 . . Treads 4 | . 3 1 . . Leg . | . . . . . Wheel 1 | . . 1 . . Hover . | . . . . . Flight . | . . . . . Utility 9 | 1 7 1 . . Device 4 | 1 3 . . . Storage 2 | . 2 . . . Processor . | . . . . . Hackware . | . . . . . Protection 3 | . 2 1 . . Artifact . | . . . . . Weapon 12 | 1 5 2 2 2 Energy Gun 3 | . 3 . . . Energy Cannon 2 | . 1 . 1 . Ballistic Gun 3 | 1 1 1 . . Ballistic Cannon . | . . . . . Launcher 3 | . . 1 1 1 Special Weapon . | . . . . . Impact Weapon . | . . . . . Slashing Weapon 1 | . . . . 1 Piercing Weapon . | . . . . . Special Melee Weapon . | . . . . . Unidentified Prototypes . | . . . . . Parts Lost 8 | . 5 1 . 2 Power 1 | . 1 . . . Propulsion 3 | . 1 1 . 1 Utility 2 | . 1 . . 1 Weapon 2 | . 2 . . . Highest Loss Streak 4 | . 3 4 . 2 To Critical Strikes . | . . . . . Average Slot Usage (%) 96 | . 99 98 74 97 Engine 13 | . 13 14 14 14 Treads 19 | . 23 14 14 12 Leg 3 | . 4 . . . Wheel 4 | . . 12 14 14 Device 5 | . 8 . . . Storage 14 | . 14 14 14 14 Protection 8 | . 5 14 14 12 Energy Gun 8 | . 12 . . . Energy Cannon 4 | . 1 14 1 11 Ballistic Gun 11 | . 13 13 1 . Peak Build Rating 10 | 7 10 8 9 9 Average Rating 8 | 6 8 7 7 8 On Entrance 7 | 6 7 6 8 9 Naked Turns . | . . . . . Heaviest Build 54 | 13 52 54 54 54 Greatest Support 40 | 20 40 20 10 10 Greatest Overweight (x) 5 | . 2 5 5 5 Average Overweight (x) 2 | . . 4 4 5 Largest Inventory Capacity 20 | 8 20 20 20 20 Average Capacity 18 | 8 18 20 20 20 Most Carried 20 | 7 20 18 20 18 Average Carried 14 | 6 13 16 18 18 Final Capacity 20 | 8 20 20 20 20 Final Carried 19 | 7 19 16 18 18 Class Distribution -------------------- 95% | Mutant 4% | Scavenger-Mutant Dominant Class ---------------- Mutant | -10/Materials Mutant | -10/Mines Mutant | -10/Exiles Mutant | -9/Mines Resources | -11 -10 -10 -10 -9 ----------- Run | Yrd Mat Min Exi Min Matter Collected 737 | 235 352 84 66 . Remotely 147 | 10 137 . . . Salvage Created 1055 | 94 831 116 . 14 Parts 57 | 3 45 7 . 2 Haulers Intercepted 2 | . 2 . . . Recyclers Shooed . | . . . . . Parts Field Recycled . | . . . . . Retrieved Matter . | . . . . . Parts Self-Destructed . | . . . . . Prevented . | . . . . . Kills | -11 -10 -10 -10 -9 ------- Run | Yrd Mat Min Exi Min Combat Hostiles Destroyed 25 | . 19 5 . 1 Melee 1 | . 1 . . . Guns 17 | . 17 . . . Cannons 2 | . . 2 . . AOE 5 | . 1 3 . 1 Classes Destroyed 8 | 2 5 . . 1 Worker 1 | . 1 . . . Tunneler 2 | 1 1 . . . Hauler 2 | . 2 . . . Recycler 1 | 1 . . . . Operator 1 | . 1 . . . Swarmer 6 | . 3 3 . . Grunt 18 | . 16 2 . . Demolisher 1 | . . . . 1 Best Kill Streak 6 | 2 6 3 . 1 Combat Bots Only 6 | . 6 3 . 1 Max Kills in Single Turn 3 | 1 1 3 . 1 Gunslinging . | . . . . . Exploded 3 | . 1 3 . 1 Melee 1 | . 1 . . . Uniques/NPCs Destroyed . | . . . . . Combat | -11 -10 -10 -10 -9 -------- Run | Yrd Mat Min Exi Min Hostile Shots Fired 133 | . 102 26 . 5 Missed 24 | . 18 6 . . Damage Taken 1447 | 14 979 258 . 196 Core 266 | . 149 80 . 37 Absorbed by Shields . | . . . . . Core Remaining (%) 100 | 100 . . . . Volleys Fired 102 | 6 83 10 . 3 Largest 2 | 2 2 2 . 2 Hottest 90 | 90 80 80 . 60 Shots Fired 196 | 12 159 19 . 6 Gun 176 | 12 155 9 . . Cannon 13 | . 4 9 . . Launcher 7 | . . 1 . 6 Special . | . . . . . Kinetic 87 | 5 73 9 . . Thermal 94 | 6 79 9 . . Explosive 7 | . . 1 . 6 Electromagnetic 8 | 1 7 . . . Robot Hit Streak 12 | 7 12 7 . 4 Robot Miss Streak 4 | 1 4 1 . 1 Penetration Max . | . . . . . Secondary Targets 3 | . 3 . . . Max Gunslinging Chain 1 | . 1 . . . Shots Hit Robots 141 | 10 113 13 . 5 Core Hits 62 | 3 46 9 . 4 Critical Kills . | . . . . . Critical Parts Destroyed 1 | . 1 . . . Critical Strikes 6 | 1 5 . . . Burn 5 | 1 4 . . . Destroy 1 | . 1 . . . Melee Attacks 2 | . . . . 2 Impact . | . . . . . Slashing 2 | . . . . 2 Piercing . | . . . . . Sneak Attacks . | . . . . . Combat Hostiles . | . . . . . Follow-up Attacks . | . . . . . Damage Inflicted 2115 | 174 1527 340 . 74 Guns 1568 | 129 1397 42 . . Cannons 157 | . 17 140 . . Explosions 332 | 45 92 121 . 74 Melee . | . . . . . Ramming 58 | . 21 37 . . Kinetic 648 | 62 544 42 . . Thermal 1110 | 97 873 140 . . Explosive 195 | . . 121 . 74 Electromagnetic 104 | 15 89 . . . Impact . | . . . . . Slashing . | . . . . . Piercing . | . . . . . Highest Corruption 3 | . 3 3 3 3 Average Corruption 2 | . 2 3 3 3 Corruption Purged . | . . . . . Corruption Blocked . | . . . . . Effects 44 | . 30 7 6 1 Message Errors 10 | . 7 1 2 . Matter Fused 11 | . 6 1 3 1 Heat Flow Errors 6 | . 6 . . . Energy Discharges 6 | . 4 1 1 . Data Loss (minor) 4 | . 2 2 . . Data Loss (major) 3 | . 2 1 . . Misfires 3 | . 3 . . . Alerts 1 | . . 1 . . Overload Shots . | . . . . . Overflow Damage 15 | 2 13 . . . Projectiles . | . . . . . Explosions 15 | 2 13 . . . Melee . | . . . . . Knockbacks . | . . . . . Impact . | . . . . . Kinetic . | . . . . . Secondary . | . . . . . Self-Inflicted Damage 75 | 14 39 17 . 5 Shots 3 | 1 1 . . 1 Rammed 9 | . 3 6 . . Targets Rammed 10 | . 4 6 . . Kicked . | . . . . . Crushed 1 | . 1 . . . Highest Temperature 377 | 47 280 377 . . Average Temperature 99 | 25 89 193 . . Received Heat Transfer 588 | . 459 129 . . Effects 3 | . . 3 . . Shutdowns 1 | . . 1 . . Energy Bleed 1 | . . 1 . . Interference 1 | . . 1 . . Siege Activations . | . . . . . Robots Corrupted . | . . . . . Combat Hostiles . | . . . . . Parts Fried . | . . . . . Impact Corruptions . | . . . . . Robots Melted . | . . . . . Combat Hostiles . | . . . . . Parts Melted 4 | . 4 . . . Heat Transferred 3197 | 272 2629 296 . . Parts Sabotaged . | . . . . . Parts Stolen . | . . . . . Parts Stripped . | . . . . . Power Chain Reactions 2 | 1 1 . . . Alert | -11 -10 -10 -10 -9 ------- Run | Yrd Mat Min Exi Min Peak Influence 339 | 10 339 209 . 35 Initial 93 | . 6 93 . . Average 136 | 6 152 116 . 2 Maximum Alert Level 1 | . 1 1 . . Low Security (%) 66 | 100 59 85 . 100 Level 1 33 | . 40 14 . . Level 2 . | . . . . . Level 3 . | . . . . . Level 4 . | . . . . . Level 5 . | . . . . . High Security . | . . . . . Max Security . | . . . . . Squads Dispatched 7 | . 6 . . 1 Investigation 4 | . 4 . . . Extermination . | . . . . . Reinforcement 3 | . 2 . . 1 Assault . | . . . . . Garrison . | . . . . . Intercept . | . . . . . Searches Triggered . | . . . . . Construction Impeded 1 | . . . . 1 Haulers Reinforced . | . . . . . Active Scanning Responses . | . . . . . Cargo Convoy Interrupts . | . . . . . Stealth | -11 -10 -10 -10 -9 --------- Run | Yrd Mat Min Exi Min Distress Signals 3 | . 3 . . . Communications Jammed . | . . . . . Distress Signals . | . . . . . Times Spotted 52 | . 45 5 . 2 Peak Tracking Total 7 | . 7 3 . 2 Tactical Retreats 2 | . 2 . . . Traps | -11 -10 -10 -10 -9 ------- Run | Yrd Mat Min Exi Min Traps Triggered 5 | . 5 . . . Indirectly . | . . . . . Trap Hack Attempts . | . . . . . Triggered . | . . . . . Disarmed . | . . . . . Reprogrammed . | . . . . . Reused . | . . . . . Traps Extracted . | . . . . . Installed . | . . . . . Triggered . | . . . . . Machines | -11 -10 -10 -10 -9 ---------- Run | Yrd Mat Min Exi Min Machines Disabled . | . . . . . Max in Single Turn . | . . . . . Machines Repaired . | . . . . . Machines Dismantled . | . . . . . Machines Sabotaged . | . . . . . Overloaded Fab Kills . | . . . . . Hacking | -11 -10 -10 -10 -9 --------- Run | Yrd Mat Min Exi Min Machines Accessed 8 | . 6 . 2 . Terminals 4 | . 4 . . . Fabricators . | . . . . . Repair Stations . | . . . . . Recycling Units 2 | . 2 . . . Scanalyzers . | . . . . . Garrison Access . | . . . . . Total Hacks 20 | . 18 . 2 . Successful 10 | . 8 . 2 . Failed 9 | . 9 . . . Catastrophic 3 | . 3 . . . Database Lockouts 1 | . 1 . . . Manual 13 | . 12 . 1 . Terminals 13 | . 13 . . . Fabricators . | . . . . . Repair Stations . | . . . . . Recycling Units 5 | . 5 . . . Scanalyzers . | . . . . . Garrison Access . | . . . . . Terminal Hacks 6 | . 4 . 2 . Record 1 | . . . 1 . Robot Analysis 2 | . 2 . . . Prototype ID Bank 1 | . 1 . . . Alert Level 1 | . 1 . . . Derelict Proto ID Bank 1 | . . . 1 . Fabricator Hacks . | . . . . . Repair Station Hacks . | . . . . . Recycling Unit Hacks . | . . . . . Scanalyzer . | . . . . . Garrison Access Hacks . | . . . . . Unauthorized Hacks 4 | . 4 . . . Terminals . | . . . . . Fabricators . | . . . . . Repair Stations . | . . . . . Recycling Units 4 | . 4 . . . Reject 2 | . 2 . . . Mask 2 | . 2 . . . Scanalyzers . | . . . . . Garrison Access . | . . . . . Data Cores Recovered . | . . . . . Used . | . . . . . Hacking Detections 4 | . 4 . . . Full Trace Events 2 | . 2 . . . Feedback Events . | . . . . . Feedback Blocked . | . . . . . Robot Schematics Acquired . | . . . . . Robots Built . | . . . . . Authchips . | . . . . . Time . | . . . . . Total Robot Build Rating . | . . . . . Part Schematics Acquired . | . . . . . Parts Built . | . . . . . Authchips . | . . . . . Time . | . . . . . Total Part Build Rating . | . . . . . Parts Repaired . | . . . . . Time . | . . . . . Parts Recycled . | . . . . . Recycled Matter . | . . . . . Retrieved Matter . | . . . . . Retrieved Components . | . . . . . Parts Scanalyzed . | . . . . . Part Schematics Acquired . | . . . . . Parts Damaged . | . . . . . Bothacking | -11 -10 -10 -10 -9 ------------ Run | Yrd Mat Min Exi Min Used RIF Installer . | . . . . . Robots Hacked . | . . . . . Non-combat . | . . . . . Combat . | . . . . . Robot Hacks Applied . | . . . . . Relay Couplers Released . | . . . . . Fabnet Peak Effective % . | . . . . . Robots Rewired . | . . . . . Allies Hacked . | . . . . . Hacks Repelled . | . . . . . Allies | -11 -10 -10 -10 -9 -------- Run | Yrd Mat Min Exi Min Total Allies 3 | . . . . 3 Largest Group 3 | . . . . 3 Highest-Rated Group 40 | . . . . 40 Highest-Rated Ally 16 | . . . . 16 Total Orders . | . . . . . Ally Attacks 12 | . . . . 12 Total Damage 145 | . . . . 145 Kills 2 | . . . . 2 Allies Corrupted . | . . . . . Allies Melted . | . . . . . Intel | -11 -10 -10 -10 -9 ------- Run | Yrd Mat Min Exi Min Robot Analysis Total 2 | . 2 . . . Derelict Logs Recovered . | . . . . . Drone Launches . | . . . . . Drone Recoveries . | . . . . . Exploration | -11 -10 -10 -10 -9 ------------- Run | Yrd Mat Min Exi Min Turns Passed 2880 | 42 1889 499 353 97 Spaces Moved 1283 | 17 741 273 244 8 Core . | . . . . . Treads 564 | . 560 4 . . Legs 198 | 17 181 . . . Wheels 521 | . . 269 244 8 Hover . | . . . . . Flight . | . . . . . Fastest Speed 120 | 120 120 155 140 155 Average Speed 184 | 120 209 157 141 155 Slowest Speed 320 | 120 320 320 155 155 Overloaded Moves . | . . . . . Propulsion Burnouts . | . . . . . Robots Hopped . | . . . . . Cave-ins Triggered . | . . . . . Exploration Rate (%) 45 | 2 99 58 61 9 Regions Visited 4 Branch Regions 3 Pre-discovered Areas 1 | . . . 1 . Known Exits Taken . | . . . . . Unknown Exits Taken 4 | 1 1 1 1 . Scrap Searched 1 | . . 1 . . Spaces Dug . | . . . . . Terrain Destroyed 27 | 3 4 6 . 14 Melee . | . . . . . Projectile . | . . . . . AOE 27 | 3 4 6 . 14 Terrain Rammed . | . . . . . Walls Destroyed . | . . . . . Machines Disabled . | . . . . . Actions | -11 -10 -10 -10 -9 --------- Run | Yrd Mat Min Exi Min Total 1600 | 25 919 320 253 83 Wait 142 | . 49 25 . 68 Move 1279 | 16 740 272 243 8 Hop . | . . . . . Pick Up 20 | 1 15 . 4 . Fast Attach 3 | 1 2 . . . Attach 7 | . 1 4 2 . Detach 3 | . 1 . 2 . Swap 20 | 1 14 3 . 2 Drop 12 | . 10 . 2 . Fire 102 | 6 83 10 . 3 Melee 2 | . . . . 2 Ram 6 | . . 6 . . Kick . | . . . . . Crush 4 | . 4 . . . Escape Stasis . | . . . . . Rewire . | . . . . . Trap . | . . . . . Miscellaneous . | . . . . . Route ------- -11/Scrapyard -10/Materials (discovered 5 exits: [*Mat x3] / [*Min x2]) -10/Mines (discovered 2 exits: [*Mat] / *Exi) -10/Exiles -9/Mines History --------- Turn | Location | Event 1 | -11/Scrapyard | Discovered new exit (range 3) 43 | -11/Scrapyard | Entered Materials 71 | -10/Materials | Discovered new exit (range 8) 144 | -10/Materials | Discovered new exit (range 14) 167 | -10/Materials | Central database locked down 300 | -10/Materials | Build established: Mutant 356 | -10/Materials | Discovered new exit (range 7) 840 | -10/Materials | Discovered new exit (range 8) 1072 | -10/Materials | Discovered new exit (range 10) 1377 | -10/Materials | Core integrity fell below 50% 1932 | -10/Materials | Entered Mines 1953 | -10/Mines | Core integrity fell below 20% 1967 | -10/Mines | Lost 4 parts (1p2n1u) 2081 | -10/Mines | Met a Derelict bent on vengeance 2257 | -10/Mines | Discovered new exit (range 11) 2424 | -10/Mines | Deemed a non-threat by the Exiles lab entrance 2424 | -10/Mines | Discovered new exit (range 5) 2431 | -10/Mines | Entered Exiles 2470 | -10/Exiles | Met 8R-AWN 2495 | -10/Exiles | Met EX-HEX 2536 | -10/Exiles | Met EX-BIN 2554 | -10/Exiles | Aligned with FarCom system 2555 | -10/Exiles | Given EX-Vault access code 2587 | -10/Exiles | Opened EX-Vault 2594 | -10/Exiles | Found Longsword +1 2622 | -10/Exiles | Warned to stay clear of 0b10 Research branches 2661 | -10/Exiles | Met EX-DEC 2670 | -10/Exiles | Learned location of Zion (-6) 2765 | -10/Exiles | Discovered new exit (range 14) 2784 | -10/Exiles | Left Exiles lab with Longsword +1 2784 | -10/Exiles | Entered Mines 2785 | -9/Mines | Assembled infested the area 2792 | -9/Mines | Assisted by bots powering up and referring to "LRC-V3" 2856 | -9/Mines | Lost 3 allies 2881 | -9/Mines | Destroyed by D-53 Grenadier with Mini Grenade Launcher Last Messages --------------- 02743_ Acquired Lrg. Storage Unit. 02765_ EXIT=FOUND 02774_ SVL4GD= Z8KM5HW,ZYZXNG>RKW KD,7#KCDX LOCATION=UNKNOWN GOAL=ESCAPE 02784_ Receiving FarCom transmissions... 02785_ ALERT: Infestation in the mines, dispatching Demolisher response squad. 02792_ Trooper 2a: "Hello LRC-V3. What is your command?" 02792_ Mercenary 2a: "Hello LRC-V3. What is your command?" 02792_ Trooper 2b: "Hello LRC-V3. What is your command?" 02841_ The unstable cave ceiling collapses. 02871_ System corrupted: Matter fused (-6). 02874_ Lgt. Armor Plating destroyed. 02874_ U-05 Engineer lays Concrete. 02874_ D-53 Grenadier destroyed. 02875_ ALERT: Construction progress impeded, dispatching reinforcements to local area. 02878_ Lgt. Treads destroyed. 02880_ U-05 Engineer lays Concrete. Map ----- +----------------------------------------------------+ | | | | | | | | | | | | | | | | | | | | | | | | | | | | | | | | | | | | | | | | | | | ?????????????????????## # # ##???????????????????? | | ????????????????????## #####???????????????? | | ????????????????????# ##??????????????? | | ????????????????????# #??????????????? | | ?????????????????????# @ #?????????????? | | ?????????????????????# d= #????????????? | | ??????????????????? #????????????? | | ???????????????? #????????????? | | ?????????????? # #????????????? | | ???????????? r ### #????????????? | | ?????????g??# ??# #????????????? | | ????????????##### u #????????????? | | ????????????????### #????????????? | | ??????????????????## #????????????? | | ???????????????????# #### #????????????? | | ???????????????????# ???#### # ##????????????? | | ???????????????????#?????????#u ??????????????? | | ?????????????????????????????# ????????????????? | | ?????????????????????????????# #????????????????? | | ?????????????????????????????# #????????????????? | | ?????????????????????????????# #????????????????? | | ????????????????????????????? ????????????????? | | ????????????????????????????? ????????????????? | | ????????????????????????????? ????????????????? | | ????????????????????????????? ????????????????? | | ????????????????????????????? ?????????????????? | | ?????????????????????????????????????????????????? | | ?????????????????????????????????????????????????? | | ?????????????????????????????????????????????????? | +----------------------------------------------------+ Best States ------------- Heat Dissipation 39 Energy Generation 10 Energy Capacity 250 Matter Stores 300 Matter Capacity 300 Sight Range 16 Terrain Scan Density 10 Armor Coverage 150 Evasion (%) 55 Recoil Reduction 2 Item Schematics ----------------- None Robot Schematics ------------------ None Fabricated ------------ Nothing Alien Tech Used ----------------- None Achievements -------------- None Challenges ------------ None Game ------ Seed MiniResetJammer Manual? 0 Play Time 00:17:06 Cumulative 82.6 hours Start 2024.09.15 @ 12:19:39 End 2024.09.15 @ 12:36:35 Sessions 1 Manual Loads 0 Difficulty Rogue Special Mode None Game No. 114 Rogue 114 Adventurer 0 Explorer 0 Win Type - Total 1 Types 1/0/0/0/0/0/0/0/0 Lore% 18 Gallery% 55 Achievement% 43 Wizard Run 0 Options --------- Layout 0 ASCII 0 Keyboard 0 Movement Mouse Keybinds 1 Fullscreen 1 Font 18/TerminusBold Map View 76x50 Zoom Use 0% Tactical HUD 1 Map Filters NONE Filters NONE Steam 1 RUN: d6681b3f-ef74-4e38-8f37-0a6bf1e6cb3f